Workbook

Sheet Various
B2: Various Formulas © Rocketwaveuk | H2: Unlocked
T3: Hex Number Converter | Y3: =16^1*Y4 -> 160 | Z3: =Z4 -> 5
T4: 06A5 | Y4: =VLOOKUP(MID(T4,3,1),Y7:Z23,2,0) -> 10 | Z4: =VLOOKUP((MID(T4,4,1)),Y7:Z23,2,0) -> 5
T5: Base 10 Number = | Y5: =16^3*Y6 -> 0 | Z5: =16^2*Z6 -> 1536
B6: Wave Length | E6: Peek V Rms Values | T6: =Y5+Z5+Y3+Z3 -> 1701 | Y6: =VLOOKUP((MID(T4,1,1)),Y7:Z23,2,0) -> 0 | Z6: =VLOOKUP((MID(T4,2,1)),Y7:Z23,2,1) -> 6
B7: Freq in MHz | C7: 145.5 | E7: Peek | F7: 70.7 | G7: Rms | H7: =F7*0.707 -> 49.9849 | Y7: HEX | Z7: DEC
B8: =300/C7 -> 2.06185567 | E8: Rms v Peek Values | Y8: 0 | Z8: 0
B9: Frequency | E9: Rms | F9: 50 | G9: Peek | H9: =F9/0.707 -> 70.72135785 | Y9: 1 | Z9: 1
B10: Wave in Mtrs | C10: 6 | Y10: 2 | Z10: 2
B11: =300/C10 -> 50 | T11: Gear Box Ratio And Speeds | Y11: 3 | Z11: 3
Y12: 4 | Z12: 4
T13: Gear Ratio | U13: Min Revs | V13: Max Revs | Y13: 5 | Z13: 5
T14: Input Speed | U14: 1000 | V14: 7500 | Y14: 6 | Z14: 6
T15: Input Gear | U15: 32 | Y15: 7 | Z15: 7
T16: Spindle Ratio 1 | U16: 36 | Y16: 8 | Z16: 8
B17: Basic Ohms Law | T17: Spindle Ratio 2 | U17: 40 | Y17: 9 | Z17: 9
B18: V | C18: I | D18: Ω R | T18: Output Gear | U18: 48 | Y18: a | Z18: 10
B19: 240 | D19: 19.6 | T19: Output Speed | U19: =(U14*(U15/U16)*(U16/U17)*(U17/U18)) -> 666.6666667 | V19: =(V14*(U15/U16)*(U16/U17)*(U17/U18)) -> 5000 | Y19: b | Z19: 11
B20: =IF(B19=0,IF(OR(C19=0,D19=0),0,IF(AND((C19*D19)<1,(C19*D19)>0.001),MROUND(((C19*D19)*1000),0.001)&" mV",IF((C19*D19)<0.001,MROUND(((C19*D19)*1000000),0.001)&" uV",MROUND((C19*D19),0.001)&" Volts"))),(IF(C19=0,IF(OR(B19=0,D19=0),0,IF(AND((B19/D19)<1,(B19/D19)>0.001),MROUND(((B19/D19)*1000),0.001)&" mA",IF((B19/D19)<0.001,MROUND(((B19/D19)*1000000),0.001)&" uA",MROUND((B19/D19),0.001)&" Amps"))),IF(D19=0,IF(OR(B19=0,C19=0),0,IF(AND((B19/C19)<1,(B19/C19)>0.001),MROUND(((B19/C19)*1000),0.001)&" mΩ",IF((B19/C19)<0.001,MROUND(((B19/C19)*1000000),0.001)&" uΩ",MROUND((B19/C19),0.001)&" Ohms"))),"Leave Desired Quantity Empty")))) -> 12.245 Amps | Y20: c | Z20: 12
B21: Power Rating | C21: =IF(B19=0,IF(OR(C19=0,D19=0),0,C19*D19),(IF(C19=0,IF(OR(B19=0,D19=0),0,B19/D19),IF(D19=0,IF(OR(B19=0,C19=0),0,B19/C19),"Leave Desired Quantity Empty")))) -> 12.24489796 | D21: =IF(B19=0,MROUND(C21*C19,0.001),IF(C19=0,MROUND(B19*C21,0.001),IF(D19=0,MROUND(B19*C19,0.001),0)))&" Watts" -> 2938.776 Watts | Y21: d | Z21: 13
Y22: e | Z22: 14
Y23: f | Z23: 15
B24: =IF(C27=D27,1,IF(C27=E27,1,IF(C27=C28,1,IF(C27=D28,1,IF(C27=E28,1,IF(D27=E27,1,IF(D27=C28,1,IF(D27=D28,1,IF(D27=E28,1,IF(E27=C28,1,IF(E27=D28,1,IF(E27=E28,1,IF(C28=D28,1,IF(C28=E28,1,IF(D28=E28,1,0))))))))))))))) -> 0 | C24: Lottery Random Numbers
C25: Highest Number Allowed > | E25: 49
C26: Lowest Number Allowed > | E26: 1
B27: Your Lottery Numbers Are | C27: =INT(RAND()*($E$25-$E$26)+$E$26) -> 31 | D27: 23 | E27: 26
C28: 47 | D28: 3 | E28: 39
B29: Click Here >>>
B31: Betting Odds Calculator
B32: Bet | C32: Odd | D32: To | E32: Ratio | F32: You Win | G32: Including Bet =
B33: 10 | C33: 5 | D33: 2 | E33: =C33/D33 -> 2.5 | F33: =(B33*E33) -> 25 | G33: =(B33*E33)+B33 -> 35
B35: Speed / Time /Distance Convertion
B37: Distance Miles | C37: Time Min's | D37: Speed Mph
B38: 170 | D38: 28
B39: =IF(D38=0,IF(OR(B38=0,C38=0),0,ROUNDDOWN((60/C38)*B38,2)&" Mph"),(IF(C38=0,IF(OR(B38=0,D38=0),0,QUOTIENT((ROUNDDOWN(B38/(D38/60),2)),60)&" Hours "&ROUNDDOWN((MOD(B38/(D38/60),60)),0)&" Minutes"),IF(B38=0,IF(OR(C38=0,D38=0),0,ROUNDDOWN((C38/60)*D38,2)&" Miles"),"Leave Desired Quantity Empty")))) -> 6 Hours 4 Minutes
